[Event "GrandPrix_30.05"]
[Site "Chess.com"]
[Date "2020.05.30"]
[Round "1"]
[White "VincentKeymer"]
[Black "vagpat"]
[Result "1-0"]
[WhiteElo "2765"]
[BlackElo "2216"]
[TimeControl "600+2"]
[EndTime "8:20:37 PDT"]
[Termination "VincentKeymer won by resignation"]

1. Nf3 {[%clk 0:10:00.7]} 1... Nf6 {[%clk 0:09:59.1]} 2. c4 {[%clk 0:10:01.4]}
2... g6 {[%clk 0:09:45.4]} 3. Nc3 {[%clk 0:10:00.7]} 3... Bg7 {[%clk 0:09:46.2]}
4. g3 {[%clk 0:10:02.2]} 4... b6 {[%clk 0:09:43.9]} 5. Bg2 {[%clk 0:09:54.9]}
5... Bb7 {[%clk 0:09:44.3]} 6. O-O {[%clk 0:09:46.7]} 6... O-O {[%clk
0:09:42.3]} 7. d4 {[%clk 0:09:42.5]} 7... Ne4 {[%clk 0:09:40.1]} 8. Qd3 {[%clk
0:09:31.6]} 8... Nxc3 {[%clk 0:09:28.9]} 9. bxc3 {[%clk 0:09:33.5]} 9... d6
{[%clk 0:09:16.5]} 10. e4 {[%clk 0:09:33]} 10... Nd7 {[%clk 0:08:49.2]} 11. Be3
{[%clk 0:09:30]} 11... e5 {[%clk 0:08:08.1]} 12. Nd2 {[%clk 0:09:06.6]} 12... f5
{[%clk 0:07:26]} 13. f4 {[%clk 0:08:40]} 13... exf4 {[%clk 0:06:22.5]} 14. Bxf4
{[%clk 0:08:35.4]} 14... Kh8 {[%clk 0:04:54.3]} 15. Rae1 {[%clk 0:08:07.3]}
15... Rb8 {[%clk 0:04:23.5]} 16. Be3 {[%clk 0:07:46.3]} 16... fxe4 {[%clk
0:04:13]} 17. Nxe4 {[%clk 0:07:47.2]} 17... Nf6 {[%clk 0:03:24.3]} 18. Bg5
{[%clk 0:07:35.1]} 18... Bxe4 {[%clk 0:03:25.1]} 19. Rxe4 {[%clk 0:07:22.7]}
19... Qd7 {[%clk 0:03:25.9]} 20. Ref4 {[%clk 0:07:08.8]} 20... Nh5 {[%clk
0:03:15.6]} 21. Rxf8+ {[%clk 0:07:09.3]} 21... Rxf8 {[%clk 0:03:16.4]} 22. Rxf8+
{[%clk 0:07:09.8]} 22... Bxf8 {[%clk 0:03:18.3]} 23. Qf3 {[%clk 0:07:08.2]}
23... Qe8 {[%clk 0:02:57]} 24. h3 {[%clk 0:06:07.6]} 24... Ng7 {[%clk
0:02:55.7]} 25. Qf6 {[%clk 0:06:02.7]} 25... c6 {[%clk 0:02:25]} 26. Bxc6 {[%clk
0:05:43]} 26... Qe1+ {[%clk 0:02:07.8]} 27. Kg2 {[%clk 0:05:33.6]} 27... Qe2+
{[%clk 0:02:00.8]} 28. Qf2 {[%clk 0:05:34]} 28... Qxf2+ {[%clk 0:01:48.6]} 29.
Kxf2 {[%clk 0:05:35.9]} 29... Ne6 {[%clk 0:01:49.7]} 30. Bc1 {[%clk 0:05:29.4]}
30... Kg7 {[%clk 0:01:43.1]} 31. Kf3 {[%clk 0:05:21.2]} 31... Kf6 {[%clk
0:01:38.5]} 32. h4 {[%clk 0:05:22]} 32... h6 {[%clk 0:01:37]} 33. Bd7 {[%clk
0:04:57.8]} 33... Nc7 {[%clk 0:01:25.4]} 34. Ke4 {[%clk 0:04:47.3]} 34... g5
{[%clk 0:00:56.6]} 35. hxg5+ {[%clk 0:04:34.3]} 35... hxg5 {[%clk 0:00:58.5]}
36. a4 {[%clk 0:04:16.1]} 36... Ke7 {[%clk 0:00:51.4]} 37. Bh3 {[%clk
0:03:57.7]} 37... Kf6 {[%clk 0:00:52.3]} 38. Kf3 {[%clk 0:03:58.2]} 38... Be7
{[%clk 0:00:40.9]} 39. Kg4 {[%clk 0:03:55.1]} 39... Ne6 {[%clk 0:00:35.2]} 40.
Bg2 {[%clk 0:03:53.4]} 40... Kg6 {[%clk 0:00:07.6]} 41. Be4+ {[%clk 0:03:51.6]}
41... Kg7 {[%clk 0:00:05.9]} 42. Bd5 {[%clk 0:03:51.3]} 42... Nf8 {[%clk
0:00:05.5]} 43. Bxg5 {[%clk 0:03:49.3]} 43... Bxg5 {[%clk 0:00:07.4]} 44. Kxg5
{[%clk 0:03:51.2]} 44... Nd7 {[%clk 0:00:06.6]} 45. Kf5 {[%clk 0:03:50.4]} 45...
Nf6 {[%clk 0:00:07.3]} 46. g4 {[%clk 0:03:51.5]} 46... Ne8 {[%clk 0:00:06.4]}
47. Ke6 {[%clk 0:03:45.9]} 47... Kg6 {[%clk 0:00:06.2]} 48. Ke7 {[%clk
0:03:42.2]} 48... Nf6 {[%clk 0:00:07]} 49. Kxd6 {[%clk 0:03:42.4]} 49... Nxg4
{[%clk 0:00:07.9]} 50. Kc6 {[%clk 0:03:41.7]} 50... Ne3 {[%clk 0:00:06.6]} 51.
Kb7 {[%clk 0:03:36.4]} 51... Nd1 {[%clk 0:00:07.3]} 52. Kxa7 {[%clk 0:03:37.4]}
52... Nxc3 {[%clk 0:00:08.6]} 53. Bc6 {[%clk 0:03:38.2]} 53... Ne2 {[%clk
0:00:07.4]} 54. d5 {[%clk 0:03:38.2]} 54... Kf6 {[%clk 0:00:07.5]} 55. Kxb6
{[%clk 0:03:39.1]} 55... Ke7 {[%clk 0:00:09.4]} 56. a5 {[%clk 0:03:39.2]} 1-0

[Event "GrandPrix_30.05"]
[Site "Chess.com"]
[Date "2020.05.30"]
[Round "1"]
[White "DenisQ"]
[Black "Arm-Akiba"]
[Result "0-1"]
[WhiteElo "2241"]
[BlackElo "2894"]
[TimeControl "600+2"]
[EndTime "8:20:41 PDT"]
[Termination "Arm-Akiba won by resignation"]

1. Nf3 {[%clk 0:09:58.2]} 1... d5 {[%clk 0:10:00]} 2. d4 {[%clk 0:09:53.6]} 2...
Nf6 {[%clk 0:10:00.4]} 3. c4 {[%clk 0:09:53.5]} 3... e6 {[%clk 0:10:00.7]} 4.
Nc3 {[%clk 0:09:52.4]} 4... Bb4 {[%clk 0:09:58.3]} 5. cxd5 {[%clk 0:09:46.2]}
5... exd5 {[%clk 0:09:58.4]} 6. Bg5 {[%clk 0:09:43.8]} 6... h6 {[%clk
0:09:54.7]} 7. Bxf6 {[%clk 0:09:41.9]} 7... Qxf6 {[%clk 0:09:51.5]} 8. Qa4+
{[%clk 0:09:30.7]} 8... Nc6 {[%clk 0:09:50.4]} 9. e3 {[%clk 0:09:26.1]} 9... O-O
{[%clk 0:09:33.4]} 10. Bb5 {[%clk 0:08:53.1]} 10... Bg4 {[%clk 0:08:33.9]} 11.
Nd2 {[%clk 0:06:50.3]} 11... Bxc3 {[%clk 0:07:59.7]} 12. bxc3 {[%clk 0:06:49.9]}
12... Ne7 {[%clk 0:08:01.3]} 13. Bd3 {[%clk 0:06:34.3]} 13... c5 {[%clk
0:07:52.9]} 14. O-O {[%clk 0:06:20]} 14... c4 {[%clk 0:07:53.8]} 15. Bc2 {[%clk
0:06:18.8]} 15... Rfd8 {[%clk 0:07:32.2]} 16. Rae1 {[%clk 0:06:14.3]} 16... Bd7
{[%clk 0:07:22.5]} 17. Qa3 {[%clk 0:06:05.5]} 17... Ng6 {[%clk 0:07:02.7]} 18.
f4 {[%clk 0:04:45.7]} 18... Re8 {[%clk 0:06:47.5]} 19. Nf3 {[%clk 0:04:44.5]}
19... Bf5 {[%clk 0:06:41.2]} 20. Qb2 {[%clk 0:04:43]} 20... Ne7 {[%clk
0:06:25.4]} 21. e4 {[%clk 0:04:09.9]} 21... Bxe4 {[%clk 0:06:21]} 22. Bxe4
{[%clk 0:04:11.8]} 22... dxe4 {[%clk 0:06:22.2]} 23. Rxe4 {[%clk 0:04:12.5]}
23... Nd5 {[%clk 0:06:13.3]} 24. Rxe8+ {[%clk 0:03:52.9]} 24... Rxe8 {[%clk
0:06:13.2]} 25. Ne5 {[%clk 0:03:54.8]} 25... Qb6 {[%clk 0:06:01.7]} 26. Qxb6
{[%clk 0:03:35.5]} 26... Nxb6 {[%clk 0:05:58.5]} 27. Rb1 {[%clk 0:02:58.3]}
27... f6 {[%clk 0:05:57.5]} 28. Nf3 {[%clk 0:02:58.5]} 28... Re3 {[%clk
0:05:52.7]} 29. a4 {[%clk 0:02:57.3]} 29... Nxa4 {[%clk 0:04:44.9]} 30. Rxb7
{[%clk 0:02:55.1]} 30... Nxc3 {[%clk 0:04:45.7]} 31. Rxa7 {[%clk 0:02:42.5]}
31... Nd5 {[%clk 0:04:44.4]} 32. Kf2 {[%clk 0:02:25.9]} 32... Re8 {[%clk
0:04:40.2]} 33. Rd7 {[%clk 0:01:42]} 33... Nxf4 {[%clk 0:04:27.4]} 34. Rc7
{[%clk 0:01:41.1]} 34... Re2+ {[%clk 0:04:20.2]} 35. Kg3 {[%clk 0:01:41.2]}
35... Nd5 {[%clk 0:04:14.4]} 36. Rxc4 {[%clk 0:01:33.7]} 36... Rxg2+ {[%clk
0:04:14.1]} 37. Kxg2 {[%clk 0:01:32.3]} 37... Ne3+ {[%clk 0:04:15]} 38. Kg3
{[%clk 0:01:28.2]} 38... Nxc4 {[%clk 0:04:16]} 39. Kf4 {[%clk 0:01:30.1]} 39...
Kf7 {[%clk 0:04:16.7]} 40. d5 {[%clk 0:01:25.4]} 40... Nd6 {[%clk 0:04:07.4]}
41. h4 {[%clk 0:01:22.3]} 41... g6 {[%clk 0:03:52.3]} 42. Nd4 {[%clk 0:01:03.9]}
42... g5+ {[%clk 0:03:51.3]} 43. Kg4 {[%clk 0:00:55]} 43... Kg6 {[%clk
0:03:52.3]} 44. hxg5 {[%clk 0:00:32]} 44... hxg5 {[%clk 0:03:45.2]} 45. Ne6
{[%clk 0:00:28.5]} 45... f5+ {[%clk 0:03:44.4]} 46. Kf3 {[%clk 0:00:29.7]} 46...
Kf6 {[%clk 0:03:41.5]} 47. Nf8 {[%clk 0:00:26]} 47... Ke5 {[%clk 0:03:27.6]} 48.
Nh7 {[%clk 0:00:22.7]} 48... Ne4 {[%clk 0:03:05.6]} 49. d6 {[%clk 0:00:20.3]}
49... Kxd6 {[%clk 0:03:03]} 50. Nxg5 {[%clk 0:00:19.3]} 50... Nxg5+ {[%clk
0:03:03.6]} 51. Kf4 {[%clk 0:00:20.7]} 51... Ke6 {[%clk 0:03:04.5]} 52. Kxg5
{[%clk 0:00:21.7]} 0-1

[Event "GrandPrix_30.05"]
[Site "Chess.com"]
[Date "2020.05.30"]
[Round "1"]
[White "yamalchess"]
[Black "Hakob-Hakobyan-Arm"]
[Result "0-1"]
[WhiteElo "2364"]
[BlackElo "2132"]
[TimeControl "600+2"]
[EndTime "8:20:44 PDT"]
[Termination "Hakob-Hakobyan-Arm won by resignation"]

1. d4 {[%clk 0:08:49.9]} 1... d5 {[%clk 0:09:59.7]} 2. c4 {[%clk 0:08:50]} 2...
c6 {[%clk 0:10:00.6]} 3. Nc3 {[%clk 0:08:46.3]} 3... Nf6 {[%clk 0:10:01.4]} 4.
Bf4 {[%clk 0:08:46.3]} 4... dxc4 {[%clk 0:10:01.8]} 5. e3 {[%clk 0:08:43.4]}
5... b5 {[%clk 0:10:01.5]} 6. a4 {[%clk 0:08:17.5]} 6... b4 {[%clk 0:10:01.7]}
7. Na2 {[%clk 0:08:15.7]} 7... e6 {[%clk 0:09:58.1]} 8. Bxc4 {[%clk 0:08:10.7]}
8... Be7 {[%clk 0:09:56.1]} 9. Nf3 {[%clk 0:07:50.8]} 9... Nbd7 {[%clk
0:09:51.7]} 10. O-O {[%clk 0:07:45.7]} 10... O-O {[%clk 0:09:52.3]} 11. Nc1
{[%clk 0:07:45.8]} 11... Bb7 {[%clk 0:09:50]} 12. Nb3 {[%clk 0:07:42.9]} 12...
c5 {[%clk 0:09:23.5]} 13. a5 {[%clk 0:07:30.6]} 13... a6 {[%clk 0:09:10.2]} 14.
Qe2 {[%clk 0:07:22.9]} 14... Nd5 {[%clk 0:08:34.7]} 15. Bg3 {[%clk 0:07:19.4]}
15... cxd4 {[%clk 0:08:06.1]} 16. exd4 {[%clk 0:07:19.5]} 16... N7f6 {[%clk
0:07:59.9]} 17. Ne5 {[%clk 0:07:17.6]} 17... Nd7 {[%clk 0:07:24.1]} 18. f4
{[%clk 0:07:02.4]} 18... N7f6 {[%clk 0:06:21.3]} 19. Rfe1 {[%clk 0:06:54.7]}
19... g6 {[%clk 0:06:06.8]} 20. Nc5 {[%clk 0:06:10.9]} 20... Bxc5 {[%clk
0:05:53]} 21. dxc5 {[%clk 0:06:11.5]} 21... Qc7 {[%clk 0:05:43.3]} 22. c6 {[%clk
0:05:58.2]} 22... Bxc6 {[%clk 0:05:40.8]} 23. Rac1 {[%clk 0:05:49.3]} 23... Qb7
{[%clk 0:05:13.3]} 24. Bh4 {[%clk 0:04:51.5]} 24... Nxf4 {[%clk 0:04:33]} 25.
Qf2 {[%clk 0:04:44.8]} 25... N6h5 {[%clk 0:04:33.6]} 26. Bg5 {[%clk 0:04:14.1]}
26... Nd5 {[%clk 0:03:49]} 27. Bh6 {[%clk 0:04:03.1]} 27... Ng7 {[%clk
0:03:38.8]} 28. Ng4 {[%clk 0:02:37.4]} 28... f5 {[%clk 0:03:26.4]} 29. Ne5
{[%clk 0:02:18.3]} 29... Bb5 {[%clk 0:03:26.8]} 30. Bxd5 {[%clk 0:02:07]} 30...
exd5 {[%clk 0:03:17.2]} 31. Rc5 {[%clk 0:01:51.9]} 31... Rfc8 {[%clk 0:03:05.9]}
32. Rec1 {[%clk 0:01:50.4]} 32... Ne6 {[%clk 0:03:07.2]} 33. R5c2 {[%clk
0:01:25.1]} 33... d4 {[%clk 0:02:58.1]} 34. Qe1 {[%clk 0:01:04.4]} 34... Rxc2
{[%clk 0:02:29]} 35. Rxc2 {[%clk 0:01:04.5]} 35... Qe4 {[%clk 0:02:30.5]} 36.
Qc1 {[%clk 0:00:58.1]} 36... Qxe5 {[%clk 0:02:09.2]} 37. Rc8+ {[%clk 0:00:58.7]}
37... Rxc8 {[%clk 0:02:10.7]} 38. Qxc8+ {[%clk 0:00:59.5]} 38... Kf7 {[%clk
0:02:12.4]} 39. Qb7+ {[%clk 0:00:52.6]} 39... Qc7 {[%clk 0:02:13]} 40. Qd5
{[%clk 0:00:47.1]} 40... Qd7 {[%clk 0:02:06.1]} 41. Qe5 {[%clk 0:00:46.6]} 41...
d3 {[%clk 0:02:07.6]} 42. Qh8 {[%clk 0:00:46.3]} 42... Qd4+ {[%clk 0:02:08.4]}
43. Kh1 {[%clk 0:00:46]} 43... Qxh8 {[%clk 0:02:08.5]} 0-1

[Event "GrandPrix_30.05"]
[Site "Chess.com"]
[Date "2020.05.30"]
[Round "1"]
[White "GadimbayliA"]
[Black "PotapovaM"]
[Result "1-0"]
[WhiteElo "2529"]
[BlackElo "2148"]
[TimeControl "600+2"]
[EndTime "8:20:49 PDT"]
[Termination "GadimbayliA won by resignation"]

1. e4 {[%clk 0:10:00.5]} 1... c5 {[%clk 0:10:00.4]} 2. Nf3 {[%clk 0:10:01]} 2...
d6 {[%clk 0:10:00.2]} 3. d4 {[%clk 0:10:02.2]} 3... cxd4 {[%clk 0:10:01.5]} 4.
Nxd4 {[%clk 0:10:04.1]} 4... Nf6 {[%clk 0:10:02.8]} 5. Nc3 {[%clk 0:10:04.8]}
5... a6 {[%clk 0:10:04.3]} 6. g3 {[%clk 0:10:05.2]} 6... e5 {[%clk 0:09:50.5]}
7. Nf3 {[%clk 0:10:05.7]} 7... Be7 {[%clk 0:09:25.1]} 8. Bg2 {[%clk 0:10:05.7]}
8... O-O {[%clk 0:09:21.6]} 9. O-O {[%clk 0:10:06.3]} 9... Nbd7 {[%clk
0:09:12.3]} 10. Nh4 {[%clk 0:09:54.3]} 10... g6 {[%clk 0:08:53]} 11. Re1 {[%clk
0:09:52.7]} 11... b5 {[%clk 0:08:53]} 12. Nf3 {[%clk 0:09:10.8]} 12... Bb7
{[%clk 0:08:51]} 13. a3 {[%clk 0:08:39.1]} 13... Rc8 {[%clk 0:08:43.4]} 14. Nd2
{[%clk 0:08:26.5]} 14... Qb6 {[%clk 0:07:51.2]} 15. Nf1 {[%clk 0:08:16.5]} 15...
Rfd8 {[%clk 0:07:33.8]} 16. Bg5 {[%clk 0:07:59.1]} 16... Kg7 {[%clk 0:06:18.6]}
17. Qd2 {[%clk 0:07:26.3]} 17... a5 {[%clk 0:06:05.4]} 18. Ne3 {[%clk
0:06:20.1]} 18... b4 {[%clk 0:06:05.2]} 19. axb4 {[%clk 0:06:19.9]} 19... axb4
{[%clk 0:06:07.1]} 20. Bh6+ {[%clk 0:05:39.6]} 20... Kh8 {[%clk 0:05:39.9]} 21.
Ncd5 {[%clk 0:04:29.3]} 21... Bxd5 {[%clk 0:05:18.7]} 22. Nxd5 {[%clk
0:04:29.1]} 22... Nxd5 {[%clk 0:05:18.3]} 23. Qxd5 {[%clk 0:04:31]} 23... Kg8
{[%clk 0:05:13.9]} 24. Be3 {[%clk 0:03:56.7]} 24... Qc6 {[%clk 0:05:06.5]} 25.
Qxc6 {[%clk 0:02:54.7]} 25... Rxc6 {[%clk 0:05:08.4]} 26. Ra7 {[%clk 0:02:41.4]}
26... Kf8 {[%clk 0:04:47.7]} 27. Bf1 {[%clk 0:01:55]} 27... d5 {[%clk
0:00:58.2]} 28. exd5 {[%clk 0:01:54.2]} 28... Rd6 {[%clk 0:00:59.3]} 29. Bc4
{[%clk 0:01:55.1]} 29... Nb6 {[%clk 0:00:21]} 30. Bb3 {[%clk 0:01:53.4]} 30...
f5 {[%clk 0:00:13.2]} 31. Bc5 {[%clk 0:01:43.9]} 31... Rf6 {[%clk 0:00:05.9]}
32. Bxe7+ {[%clk 0:01:43.9]} 1-0

[Event "GrandPrix_30.05"]
[Site "Chess.com"]
[Date "2020.05.30"]
[Round "1"]
[White "Vuk2000"]
[Black "LANCELOT96"]
[Result "0-1"]
[WhiteElo "2315"]
[BlackElo "2153"]
[TimeControl "600+2"]
[EndTime "8:20:57 PDT"]
[Termination "LANCELOT96 won by resignation"]

1. d4 {[%clk 0:10:01.9]} 1... d5 {[%clk 0:10:01]} 2. Nf3 {[%clk 0:10:01.9]} 2...
c6 {[%clk 0:10:02.2]} 3. c4 {[%clk 0:10:02.7]} 3... dxc4 {[%clk 0:10:03.7]} 4.
a4 {[%clk 0:10:02.3]} 4... b5 {[%clk 0:10:01.3]} 5. Nc3 {[%clk 0:09:47.5]} 5...
Qb6 {[%clk 0:09:32.8]} 6. Bf4 {[%clk 0:07:51.9]} 6... Bb7 {[%clk 0:09:29.6]} 7.
e3 {[%clk 0:07:42.3]} 7... a6 {[%clk 0:08:50.5]} 8. Be2 {[%clk 0:06:17.6]} 8...
Nf6 {[%clk 0:08:50.2]} 9. O-O {[%clk 0:06:16.3]} 9... e6 {[%clk 0:08:49.9]} 10.
Qc2 {[%clk 0:05:46.8]} 10... Nbd7 {[%clk 0:08:48.6]} 11. Ne5 {[%clk 0:05:40.8]}
11... Nxe5 {[%clk 0:08:40.9]} 12. Bxe5 {[%clk 0:05:37.1]} 12... Be7 {[%clk
0:08:40.7]} 13. Bf3 {[%clk 0:05:30.3]} 13... O-O {[%clk 0:08:34.9]} 14. Rfd1
{[%clk 0:04:58.9]} 14... Nd5 {[%clk 0:08:11]} 15. Be4 {[%clk 0:04:41.4]} 15...
f5 {[%clk 0:08:07]} 16. Bf3 {[%clk 0:04:35.5]} 16... Nb4 {[%clk 0:08:06.1]} 17.
Qd2 {[%clk 0:04:29.2]} 17... Nd3 {[%clk 0:08:07.1]} 18. Bg3 {[%clk 0:04:29.8]}
18... c5 {[%clk 0:07:45.1]} 19. a5 {[%clk 0:04:16.6]} 19... Qa7 {[%clk
0:07:41.2]} 20. d5 {[%clk 0:04:08]} 20... e5 {[%clk 0:07:00.4]} 21. Be2 {[%clk
0:03:50.7]} 21... e4 {[%clk 0:06:40.7]} 22. d6 {[%clk 0:03:39]} 22... Bf6 {[%clk
0:06:41.6]} 23. f3 {[%clk 0:03:25.3]} 23... Rad8 {[%clk 0:06:21]} 24. fxe4
{[%clk 0:03:25.2]} 24... fxe4 {[%clk 0:06:22.9]} 25. Bg4 {[%clk 0:03:20.8]}
25... Kh8 {[%clk 0:06:10.5]} 26. Rab1 {[%clk 0:03:01.2]} 26... Be5 {[%clk
0:05:54.7]} 27. Bxe5 {[%clk 0:02:50.2]} 27... Nxe5 {[%clk 0:05:56.6]} 28. Be6
{[%clk 0:02:44.5]} 28... Rf6 {[%clk 0:05:48.2]} 29. Bh3 {[%clk 0:02:32.9]} 29...
Nd3 {[%clk 0:05:43.8]} 30. d7 {[%clk 0:02:33.2]} 30... Bc6 {[%clk 0:05:30.7]}
31. Rf1 {[%clk 0:02:30.2]} 31... Rxf1+ {[%clk 0:05:22.3]} 32. Rxf1 {[%clk
0:02:32.1]} 32... b4 {[%clk 0:05:12.3]} 33. Ne2 {[%clk 0:02:14.9]} 33... Qc7
{[%clk 0:04:51.9]} 34. Nf4 {[%clk 0:02:03.9]} 34... Bxd7 {[%clk 0:04:43]} 35.
Nxd3 {[%clk 0:01:45.9]} 35... Bxh3 {[%clk 0:04:31.1]} 36. Qf2 {[%clk 0:01:46.5]}
36... Be6 {[%clk 0:03:55.3]} 37. Nf4 {[%clk 0:01:38.5]} 37... Bf7 {[%clk
0:03:53.5]} 38. Nh5 {[%clk 0:00:49.9]} 38... Bg8 {[%clk 0:03:54.7]} 39. Ng3
{[%clk 0:00:40.5]} 39... Qe5 {[%clk 0:03:43.4]} 40. Qc2 {[%clk 0:00:40.6]} 40...
Rd3 {[%clk 0:03:34.6]} 41. Rf8 {[%clk 0:00:29.2]} 41... Qd5 {[%clk 0:03:17.1]}
42. Qf2 {[%clk 0:00:22.1]} 42... c3 {[%clk 0:03:02.7]} 43. bxc3 {[%clk
0:00:18.4]} 43... bxc3 {[%clk 0:03:04.6]} 44. Qc2 {[%clk 0:00:08.2]} 44... h6
{[%clk 0:02:36.2]} 45. Nf5 {[%clk 0:00:08.3]} 45... Rd1+ {[%clk 0:02:35.8]} 46.
Kf2 {[%clk 0:00:08.6]} 0-1

[Event "GrandPrix_30.05"]
[Site "Chess.com"]
[Date "2020.05.30"]
[Round "1"]
[White "payto1"]
[Black "MiroVlasenko"]
[Result "1/2-1/2"]
[WhiteElo "2161"]
[BlackElo "2484"]
[TimeControl "600+2"]
[EndTime "8:20:59 PDT"]
[Termination "Game drawn by repetition"]

1. d4 {[%clk 0:09:58.8]} 1... Nf6 {[%clk 0:09:57.8]} 2. Bg5 {[%clk 0:09:58.2]}
2... Ne4 {[%clk 0:09:57.2]} 3. h4 {[%clk 0:09:58.8]} 3... c5 {[%clk 0:09:57.2]}
4. d5 {[%clk 0:09:59]} 4... h6 {[%clk 0:09:44.5]} 5. Bf4 {[%clk 0:09:39.7]} 5...
Qb6 {[%clk 0:09:22]} 6. Nd2 {[%clk 0:09:39.8]} 6... Qxb2 {[%clk 0:08:42.9]} 7.
Nxe4 {[%clk 0:09:37.4]} 7... Qb4+ {[%clk 0:08:41.8]} 8. Qd2 {[%clk 0:09:16.4]}
8... Qxe4 {[%clk 0:08:41.8]} 9. Nf3 {[%clk 0:09:14.4]} 9... e6 {[%clk
0:07:41.4]} 10. dxe6 {[%clk 0:08:51.3]} 10... dxe6 {[%clk 0:07:26.8]} 11. e3
{[%clk 0:08:43.2]} 11... Nc6 {[%clk 0:07:19]} 12. Bd3 {[%clk 0:08:29.9]} 12...
Qb4 {[%clk 0:07:16.1]} 13. c3 {[%clk 0:08:30.8]} 13... Qa5 {[%clk 0:07:17.2]}
14. O-O {[%clk 0:08:26.3]} 14... Be7 {[%clk 0:06:17.2]} 15. Bc2 {[%clk
0:07:10.2]} 15... c4 {[%clk 0:05:55.8]} 16. e4 {[%clk 0:05:44.2]} 16... e5
{[%clk 0:05:39.7]} 17. Bg3 {[%clk 0:05:38.3]} 17... Bg4 {[%clk 0:05:35.5]} 18.
Qd5 {[%clk 0:05:30.1]} 18... Bxf3 {[%clk 0:04:49.4]} 19. gxf3 {[%clk 0:05:23.9]}
19... Qxc3 {[%clk 0:04:47]} 20. Ba4 {[%clk 0:05:09.8]} 20... O-O {[%clk
0:04:11.7]} 21. Bxc6 {[%clk 0:05:08.9]} 21... bxc6 {[%clk 0:04:12.5]} 22. Qxe5
{[%clk 0:05:09.7]} 22... Qa3 {[%clk 0:04:08.3]} 23. Rac1 {[%clk 0:04:45.4]}
23... Rae8 {[%clk 0:03:31.9]} 24. Qc3 {[%clk 0:03:50]} 24... Qxa2 {[%clk
0:03:22.4]} 25. Qxc4 {[%clk 0:03:40.4]} 25... Qxc4 {[%clk 0:03:20.4]} 26. Rxc4
{[%clk 0:03:42.3]} 26... c5 {[%clk 0:03:21.9]} 27. Ra1 {[%clk 0:03:41.5]} 27...
Ra8 {[%clk 0:03:22.1]} 28. Ra6 {[%clk 0:03:32.3]} 28... Rfd8 {[%clk 0:03:22.4]}
29. Kf1 {[%clk 0:03:32]} 29... Rd7 {[%clk 0:03:13.1]} 30. h5 {[%clk 0:03:20.4]}
30... Rb7 {[%clk 0:03:07.7]} 31. Bf4 {[%clk 0:02:37.6]} 31... Rb4 {[%clk
0:03:00.5]} 32. Rc2 {[%clk 0:02:36.9]} 32... Rb5 {[%clk 0:02:52.8]} 33. Be3
{[%clk 0:02:33.7]} 33... Kf8 {[%clk 0:02:49.4]} 34. f4 {[%clk 0:02:09.3]} 34...
Ke8 {[%clk 0:02:44.6]} 35. e5 {[%clk 0:02:07.3]} 35... Kd7 {[%clk 0:02:36.7]}
36. f5 {[%clk 0:01:59.9]} 36... Kc7 {[%clk 0:02:32]} 37. f6 {[%clk 0:01:01.3]}
37... gxf6 {[%clk 0:02:30.2]} 38. Bxh6 {[%clk 0:01:01.7]} 38... Rb6 {[%clk
0:02:24.4]} 39. Rxb6 {[%clk 0:00:52.7]} 39... axb6 {[%clk 0:02:24.3]} 40. Bg7
{[%clk 0:00:53.7]} 40... f5 {[%clk 0:02:15.1]} 41. e6 {[%clk 0:00:54]} 41...
fxe6 {[%clk 0:02:08.3]} 42. h6 {[%clk 0:00:54.8]} 42... Bf8 {[%clk 0:02:09.3]}
43. Be5+ {[%clk 0:00:54.6]} 43... Bd6 {[%clk 0:02:10.1]} 44. Bg7 {[%clk
0:00:55.7]} 44... Bf8 {[%clk 0:01:41.7]} 45. Be5+ {[%clk 0:00:55.8]} 45... Bd6
{[%clk 0:01:42.4]} 46. Bg7 {[%clk 0:00:56.7]} 46... Bf8 {[%clk 0:01:42.7]}
1/2-1/2

[Event "GrandPrix_30.05"]
[Site "Chess.com"]
[Date "2020.05.30"]
[Round "1"]
[White "2346PL"]
[Black "rim1618"]
[Result "0-1"]
[WhiteElo "2083"]
[BlackElo "2422"]
[TimeControl "600+2"]
[EndTime "8:20:59 PDT"]
[Termination "rim1618 won by resignation"]

1. d4 {[%clk 0:10:01.9]} 1... Nf6 {[%clk 0:10:00.9]} 2. Bg5 {[%clk 0:10:02.7]}
2... e6 {[%clk 0:09:56.2]} 3. Nf3 {[%clk 0:10:01.6]} 3... h6 {[%clk 0:09:56]} 4.
Bxf6 {[%clk 0:10:02.4]} 4... Qxf6 {[%clk 0:09:56.7]} 5. e4 {[%clk 0:10:04]} 5...
d6 {[%clk 0:09:56.1]} 6. Nc3 {[%clk 0:09:57.5]} 6... g5 {[%clk 0:09:55.2]} 7. e5
{[%clk 0:09:57]} 7... Qe7 {[%clk 0:09:54.1]} 8. Bd3 {[%clk 0:09:41.5]} 8... Bg7
{[%clk 0:09:52.4]} 9. Qe2 {[%clk 0:09:42.1]} 9... dxe5 {[%clk 0:09:27.6]} 10.
Nxe5 {[%clk 0:09:39.6]} 10... Nd7 {[%clk 0:09:10.7]} 11. O-O-O {[%clk
0:09:29.2]} 11... Nxe5 {[%clk 0:08:57.2]} 12. dxe5 {[%clk 0:09:31.1]} 12... Bd7
{[%clk 0:08:58.6]} 13. Qe3 {[%clk 0:08:21.7]} 13... Qb4 {[%clk 0:08:46.9]} 14.
g3 {[%clk 0:08:06]} 14... Qb6 {[%clk 0:08:31.6]} 15. Qe2 {[%clk 0:06:39.5]}
15... O-O-O {[%clk 0:08:26.5]} 16. h4 {[%clk 0:06:39.3]} 16... Bc6 {[%clk
0:07:29.9]} 17. Rhf1 {[%clk 0:06:38.8]} 17... g4 {[%clk 0:07:17.7]} 18. Be4
{[%clk 0:05:48.5]} 18... Rxd1+ {[%clk 0:06:43.2]} 19. Nxd1 {[%clk 0:05:46.9]}
19... Bb5 {[%clk 0:06:22.8]} 20. Bd3 {[%clk 0:05:47.8]} 20... Bxd3 {[%clk
0:06:21.3]} 21. cxd3 {[%clk 0:05:49.4]} 21... Qc5+ {[%clk 0:04:35.7]} 22. Kb1
{[%clk 0:05:49]} 22... Bxe5 {[%clk 0:04:34.6]} 23. Qxg4 {[%clk 0:05:49.7]} 23...
Rd8 {[%clk 0:04:35.7]} 24. Qc4 {[%clk 0:05:06.1]} 24... Qxc4 {[%clk 0:04:25.8]}
25. dxc4 {[%clk 0:05:07]} 25... Rd2 {[%clk 0:04:26.6]} 26. Re1 {[%clk
0:03:53.7]} 26... Bd6 {[%clk 0:04:13]} 27. Kc1 {[%clk 0:03:16.6]} 27... Rd4
{[%clk 0:04:12.7]} 28. b3 {[%clk 0:03:14.3]} 28... a6 {[%clk 0:04:01.1]} 29. Kc2
{[%clk 0:03:11.7]} 29... Bb4 {[%clk 0:03:48.4]} 30. Re2 {[%clk 0:03:11.7]} 30...
b5 {[%clk 0:03:49.6]} 31. Ne3 {[%clk 0:02:44.3]} 31... Kb7 {[%clk 0:03:47.4]}
32. Kb2 {[%clk 0:02:10.6]} 32... Kb6 {[%clk 0:03:26]} 33. a3 {[%clk 0:02:11.4]}
33... Bf8 {[%clk 0:03:23.4]} 34. b4 {[%clk 0:01:49.4]} 34... bxc4 {[%clk
0:03:13.6]} 35. Kc3 {[%clk 0:01:50.2]} 35... Rd3+ {[%clk 0:02:41.6]} 36. Kxc4
{[%clk 0:01:51.2]} 36... Rxa3 {[%clk 0:02:42.7]} 37. Rd2 {[%clk 0:01:52.9]}
37... Bd6 {[%clk 0:02:20.3]} 38. Ng4 {[%clk 0:01:44.7]} 38... h5 {[%clk
0:01:40.5]} 39. Nf6 {[%clk 0:01:45.5]} 39... Ra4 {[%clk 0:01:37.5]} 40. Nxh5
{[%clk 0:01:13.2]} 40... Rxb4+ {[%clk 0:01:38.4]} 41. Kc3 {[%clk 0:01:14.1]}
41... Rb5 {[%clk 0:01:37.4]} 42. Ng7 {[%clk 0:00:50.9]} 42... Be5+ {[%clk
0:01:34.5]} 0-1